fUSD/lending_fUSD_20240127
["ID","MTS","AMOUNT","RATE_DAILY","PERIOD"]
[312832881,1706321432293,-322.59862982,0.00021665,2]
[312832883,1706321432302,-434.44,0.0002167,2]
[312832885,1706321432312,-173.62889769,0.00021818,2]
[312832886,1706321432321,-250.0,0.00021918,2]
[312832887,1706321432330,-200.92,0.00021921,2]
[312832888,1706321432339,-152.89090886,0.00022,2]
[312832889,1706321432348,-150.0,0.00022137,2]
[312832890,1706321432357,-874.7987,0.00022138,2]
[312832891,1706321432366,-2353.4136,0.00022138,2]
[312832892,1706321432375,-2500.0,0.00022138,2]
[312832893,1706321432384,-90548.4614,0.00022138,2]
[312832894,1706321432393,-1000.0,0.00022138,2]
[312832895,1706321432404,-10949.87467124,0.00022139,2]
[312832896,1706321432413,-4479.55,0.00022139,2]
[312832897,1706321432423,-3084.22737247,0.00022139,2]
[312832898,1706321432433,-5000.0,0.00022139,2]
[312832899,1706321432442,-434.98,0.00022185,2]
[312832901,1706321432451,-757.41,0.00022237,2]
[312832903,1706321432461,-3305.12,0.00022237,2]
[312832905,1706321432470,-848.93873113,0.00022238,2]
[312832907,1706321432481,-499.99,0.00022238,2]
[312832909,1706321432491,-115810.6574639,0.00022238,2]
[312832913,1706321432517,-917.82255189,0.00022238,2]
[312832915,1706321432529,-3230.44295827,0.00022238,2]
[312832917,1706321432540,-391.73008624,0.00022238,2]
[312832920,1706321432552,-23522.09225784,0.00022238,2]
[312832922,1706321432564,-667.42118425,0.00022238,2]
[312832925,1706321432579,-19300.21782847,0.00022238,2]
[312832934,1706321437938,-563030.60962935,0.00022238,2]
[312832935,1706321437951,-227755.96161721,0.00022238,2]
[312833162,1706321440448,-104260.11433904,0.00022238,2]
[312833164,1706321440458,-515.36912484,0.00022239,2]
[312833166,1706321440467,-500.0,0.00022239,2]
[312833168,1706321440477,-1000.0,0.00022239,2]
[312833170,1706321440486,-245000.0,0.00022239,2]
[312833172,1706321440495,-1000.0,0.00022239,2]
[312833174,1706321440505,-39919.4283,0.0002224,2]
[312833176,1706321440514,-76570.28176134,0.0002224,2]
[312833179,1706321440525,-2243.88306028,0.0002224,2]
[312833359,1706321443608,-21185.83517838,0.0002224,2]
[312833360,1706321443618,-200.99935094,0.0002234,2]
[312833361,1706321443627,-3357.67779713,0.0002234,2]
[312833362,1706321443636,-207.66902253,0.000227,4]
[312833363,1706321443644,-1163.17517223,0.000227,2]
[312833364,1706321443653,-1902.17554256,0.000227,2]
[312833365,1706321443662,-182.84473522,0.000227,2]
[312833366,1706321443671,-14400.17062604,0.000227,2]
[312833367,1706321443680,-183.15847186,0.000227,2]
[312833368,1706321443689,-9227.79479962,0.000227,2]
[312833369,1706321443698,-129600.28288278,0.0002275,2]
[312833370,1706321443707,-1028.29,0.000228,2]
[312833371,1706321443717,-500.0,0.00022815,2]
[312833372,1706321443727,-500.0,0.00022815,2]
[312833373,1706321443739,-500.0,0.00022816,2]
[312833374,1706321443748,-500.0,0.00022816,2]
[312833375,1706321443758,-500.0,0.00022816,2]
[312833376,1706321443767,-500.0,0.00022816,2]
[312833377,1706321443777,-200.0,0.00022816,2]
[312833378,1706321443786,-827.807051,0.00022816,2]
[312833379,1706321443795,-172.6713176,0.00022997,2]
[312833380,1706321443806,-350.36453062,0.00022999,2]
[312833381,1706321443816,-669.14803599,0.00022999,2]
[312833382,1706321443825,-821731.98593801,0.00023,2]
[312833383,1706321443833,-305408.48853607,0.00023,2]
[312833384,1706321443843,-606468.25001376,0.00023,2]
[312833385,1706321443852,-54996.563503,0.00023127,2]
[312833386,1706321443861,-2633.4501118,0.00023143,2]
[312833387,1706321443871,-1247.1806693,0.00023159,2]
[312833388,1706321443880,-301.44,0.00023202,2]
[312833389,1706321443889,-201.45283623,0.00024,2]
[312833390,1706321443898,-837.0,0.00024,2]
[312833391,1706321443907,-920.0,0.00024,2]
[312833392,1706321444056,-200.92,0.00024185,2]
[312833393,1706321444066,-189.67083981,0.00024192,2]
[312833394,1706321444075,-167.02,0.00024297,2]
[312833395,1706321444084,-150.58177433,0.000243,2]
[312833396,1706321444094,-565.56,0.00024373,2]
[312833397,1706321444103,-434.44,0.00024379,2]
[312833398,1706321444112,-5788.71,0.00024384,2]
[312833399,1706321444121,-162.05,0.00024658,2]
[312833400,1706321444131,-161.25,0.00024658,2]
[312833401,1706321444140,-213.71,0.00024658,2]
[312833402,1706321444149,-250.0,0.00024658,2]
[312833403,1706321444158,-10949.87467116,0.00024754,2]
[312833404,1706321444167,-7920.74732491,0.00024846,4]
[312833405,1706321444177,-301.44,0.00024846,2]
[312833406,1706321444187,-3008.52191293,0.00025,2]
[312833407,1706321444196,-625.867481,0.00025,2]
[312833408,1706321444205,-933.94016922,0.00025,2]
[312833409,1706321444215,-56688.0945891,0.00025,2]
[312833410,1706321444224,-550.0,0.00025,3]
[312833411,1706321444233,-213.71,0.0002509,2]
[312833412,1706321444243,-161.25,0.00025405,2]
[312833413,1706321444252,-213.71,0.00025523,2]
[312833414,1706321444261,-504.459047,0.000256,2]
[312833415,1706321444269,-24305.5232,0.00025677,2]
[312833416,1706321444278,-200.0,0.00025686,2]
[312833417,1706321444287,-509.94256107,0.00025686,2]
[312833418,1706321444296,-5800.0,0.00025735,2]
[312833419,1706321444305,-5800.0,0.00025743,2]
[312833420,1706321444314,-5800.0,0.00025752,2]
[312833421,1706321444323,-5800.0,0.0002576,2]
[312833422,1706321444332,-1029.7437326,0.00025768,2]
[312833423,1706321444341,-2174.3271159,0.00025768,2]
[312833424,1706321444350,-45408.3100984,0.00025768,2]
[312833425,1706321444359,-5800.0,0.00025769,2]
[312833426,1706321444368,-5800.0,0.00025769,2]
[312833427,1706321444377,-58000.0,0.00025777,2]
[312833428,1706321444385,-5800.0,0.00025777,2]
[312833429,1706321444394,-5800.0,0.00025777,2]
[312833430,1706321444403,-46400.0,0.00025786,2]
[312833431,1706321444412,-9280.0,0.00025786,2]
[312833432,1706321444421,-1856.0,0.00025786,2]
[312833433,1706321444429,-58000.0,0.00025786,2]
[312833434,1706321444438,-5800.0,0.00025786,2]
[312833435,1706321444447,-5800.0,0.00025786,2]
[312833436,1706321444456,-58000.0,0.00025786,2]
[312833437,1706321444465,-58000.0,0.00025786,2]
[312833438,1706321444474,-5800.0,0.00025786,2]
[312833439,1706321444483,-46535.17916428,0.00025786,2]
[312833440,1706321444492,-213.71,0.00025955,2]
[312833441,1706321444501,-162.05,0.00026027,2]
[312833442,1706321444510,-161.25,0.00026152,2]
[312833443,1706321444519,-3084.22737246,0.00026248,3]
[312833444,1706321444528,-213.71,0.00026388,2]
[312833445,1706321444537,-200.92,0.00026449,2]
[312833446,1706321444546,-301.44,0.0002649,2]
[312833447,1706321444555,-153.16,0.000266,2]
[312833448,1706321444565,-213.71,0.0002682,2]
[312833449,1706321444574,-161.25,0.00026899,2]
[312833450,1706321444583,-416.83739202,0.00027,2]
[312833451,1706321444592,-600.0,0.00027,3]
[312833452,1706321444601,-565.56,0.00027081,2]
[312833453,1706321444612,-434.44,0.00027087,2]
[312833454,1706321444620,-213.71,0.00027253,2]
[312833455,1706321444629,-10949.87467116,0.00027368,2]
[312833456,1706321444639,-162.05,0.00027397,2]
[312833457,1706321444648,-195.0,0.00027397,4]
[312833458,1706321444656,-208.87,0.00027397,2]
[312833459,1706321444666,-161.34,0.000274,2]
[312833460,1706321444675,-161.34,0.000274,2]
[312833461,1706321444684,-161.34,0.000274,2]
[312833462,1706321444694,-185.94797232,0.000275,2]
[312833463,1706321444702,-1138.0,0.00027535,2]
[312833464,1706321444711,-167.347,0.00027535,2]
[312833465,1706321444721,-1011.88,0.00027536,2]
[312833466,1706321444732,-161.25,0.00027646,2]
[312833467,1706321444742,-5498.31,0.00027671,2]
[312833468,1706321444751,-213.71,0.00027686,2]
[312833469,1706321444760,-812.3067959,0.00027981,2]
[312833470,1706321444769,-1715.20412,0.00027981,2]
[312833471,1706321444778,-35820.0566938,0.00027981,2]
[312833472,1706321444787,-384.41182309,0.00027999,2]
[312833473,1706321444796,-500.0,0.00027999,2]
[312833474,1706321444806,-424.36340614,0.00027999,2]
[312833475,1706321444816,-500.0,0.00027999,2]
[312833476,1706321444825,-500.0,0.00027999,2]
[312833477,1706321444834,-500.0,0.00027999,2]
[312833478,1706321444843,-500.0,0.00027999,2]
[312833479,1706321444853,-500.0,0.00027999,2]
[312833480,1706321444862,-500.0,0.00027999,2]
[312833481,1706321444871,-500.0,0.00027999,2]
[312833482,1706321444880,-500.0,0.00027999,2]
[312833483,1706321444889,-500.0,0.00027999,2]
[312833484,1706321444899,-500.0,0.00027999,2]
[312833485,1706321444909,-500.0,0.00027999,2]
[312833486,1706321444918,-500.0,0.00027999,2]
[312833487,1706321444928,-402.02774365,0.00027999,2]
[312833488,1706321444938,-556.4923924,0.00027999,2]
[312833489,1706321444947,-500.0,0.00027999,2]
[312833490,1706321444956,-500.0,0.00027999,2]
[312833491,1706321444967,-500.0,0.00027999,2]
[312833492,1706321444976,-500.0,0.00027999,2]
[312833493,1706321444985,-500.0,0.00027999,2]
[312833494,1706321444994,-458.03829203,0.00027999,2]
[312833495,1706321445002,-500.0,0.00027999,2]
[312833496,1706321445012,-500.0,0.00027999,2]
[312833497,1706321445021,-443.12679514,0.00027999,2]
[312833498,1706321445031,-500.0,0.00027999,2]
[312833499,1706321445041,-500.0,0.00027999,2]
[312833500,1706321445050,-500.0,0.00027999,2]
[312833501,1706321445060,-500.0,0.00027999,2]
[312833502,1706321445069,-500.0,0.00027999,2]
[312833503,1706321445079,-500.0,0.00027999,2]
[312833504,1706321445088,-500.0,0.00027999,2]
[312833505,1706321445098,-500.0,0.00027999,2]
[312833506,1706321445107,-500.0,0.00027999,2]
[312833507,1706321445116,-546.97058334,0.00027999,2]
[312833508,1706321445126,-500.0,0.00027999,2]
[312833509,1706321445135,-500.0,0.00027999,2]
[312833510,1706321445145,-500.0,0.00027999,2]
[312833511,1706321445154,-500.0,0.00027999,2]
[312833512,1706321445163,-500.0,0.00027999,2]
[312833513,1706321445173,-350.0,0.00027999,2]
[312833514,1706321445182,-684095.36832647,0.00028,2]
[312833515,1706321445191,-688.92857397,0.00028,2]
[312833516,1706321445201,-20000.0,0.00028,2]
[312833517,1706321445210,-213.71,0.00028118,2]
[312833518,1706321445219,-301.44,0.00028134,2]
[312833519,1706321445228,-150.0,0.00028369,2]
[312833520,1706321445238,-157.356,0.00028369,2]
[312833521,1706321445247,-154.294,0.00028369,2]
[312833522,1706321445255,-150.0,0.00028369,2]
[312833523,1706321445264,-250.0,0.00028369,2]
[312833524,1706321445274,-260.146,0.00028369,2]
[312833525,1706321445282,-151.0,0.00028369,2]
[312833526,1706321445291,-151.332,0.00028369,2]
[312833527,1706321445301,-163.132,0.00028369,2]
[312833528,1706321445310,-207.389,0.00028369,2]
[312833529,1706321445318,-150.71,0.00028369,2]
[312833530,1706321445327,-1252.0,0.00028369,2]
[312833531,1706321445337,-729.605,0.00028369,2]
[312833532,1706321445346,-1330.838,0.00028369,2]
[312833533,1706321445355,-319.595,0.00028369,2]
[312833534,1706321445364,-161.25,0.00028394,2]
[312833535,1706321445374,-213.71,0.00028551,2]
[312833536,1706321445383,-5498.31,0.00028695,2]
[312833537,1706321445391,-200.92,0.00028712,2]
[312833538,1706321445400,-162.05,0.00028767,2]
[312833539,1706321445409,-208.87,0.00028822,2]
[312833540,1706321445418,-213.71,0.00028983,2]
[312833541,1706321445427,-1700.06344736,0.00029,15]
[312833542,1706321445436,-650.0,0.00029,3]
[312833543,1706321445445,-161.25,0.00029141,2]
[312833544,1706321445454,-213.71,0.00029416,2]
[312833545,1706321445463,-155.0,0.000295,3]
[312833546,1706321445472,-5498.31,0.00029719,2]
[312833547,1706321445480,-301.44,0.00029777,2]
[312833548,1706321445489,-565.56,0.00029789,2]
[312833549,1706321445498,-434.44,0.00029796,2]
[312833550,1706321445507,-175.58250697,0.000298,2]
[312833551,1706321445516,-213.71,0.00029848,2]
[312833552,1706321445525,-161.25,0.00029888,2]
[312833553,1706321445534,-176.03482943,0.000299,2]
[312833554,1706321445543,-594.8698591,0.00029979,2]
[312833555,1706321445551,-1256.081124,0.00029979,2]
[312833556,1706321445560,-26231.8032892,0.00029979,2]
[312833557,1706321445569,-10949.87467116,0.00029983,2]
[312833558,1706321445578,-582.7666979,0.0003,2]
[312833559,1706321445587,-357.91955435,0.0003,2]
[312833560,1706321445596,-155.0,0.0003,2]
[312833561,1706321445605,-110736.0759719,0.0003,4]
[312833562,1706321445614,-764.11347582,0.0003,4]
[312833563,1706321445623,-10057.20026256,0.0003,2]
[312833564,1706321445632,-312.12275339,0.0003,2]
[312833565,1706321445641,-9006.23,0.0003,2]
[312833566,1706321445650,-20907.80399467,0.0003,4]
[312833567,1706321445658,-1227.53949799,0.0003,4]
[312833568,1706321445667,-15226.0,0.0003,30]
[312833570,1706321445677,-43468.65833684,0.0003,2]
[312833572,1706321445686,-3000.0,0.0003,2]
[312833574,1706321445695,-3000.0,0.0003,2]
[312833576,1706321445704,-3000.0,0.0003,2]
[312833578,1706321445713,-3000.0,0.0003,2]
[312833580,1706321445722,-3000.0,0.0003,2]
[312833581,1706321445732,-3000.0,0.0003,2]
[312833583,1706321445743,-2455.71038,0.0003,2]
[312833585,1706321445752,-2455.71038,0.0003,2]
[312833586,1706321445761,-2455.71038,0.0003,2]
[312833587,1706321445770,-2455.71038,0.0003,2]
[312833588,1706321445781,-2455.71038,0.0003,2]
[312833589,1706321445790,-2455.71038,0.0003,2]
[312833590,1706321445799,-1000.0,0.0003,2]
[312833591,1706321445808,-8104.38151041,0.0003,2]
[312833592,1706321445818,-8104.38151041,0.0003,2]
[312833593,1706321445827,-8104.38151041,0.0003,2]
[312833594,1706321445836,-8104.38151041,0.0003,2]
[312833595,1706321445844,-8104.38151041,0.0003,2]
[312833596,1706321445853,-8104.38151041,0.0003,2]
[312833597,1706321445862,-8104.38151041,0.0003,2]
[312833598,1706321445871,-8104.38151041,0.0003,2]
[312833599,1706321445879,-8104.38151041,0.0003,2]
[312833600,1706321445888,-8104.38151041,0.0003,2]
[312833601,1706321445898,-8104.38151041,0.0003,2]
[312833602,1706321445907,-8104.38151041,0.0003,2]
[312833603,1706321445916,-8104.38151041,0.0003,2]
[312833604,1706321445926,-8104.38151041,0.0003,2]
[312833605,1706321445935,-8104.38151041,0.0003,2]
[312833606,1706321445944,-8104.38151041,0.0003,2]
[312833607,1706321445953,-8104.38151041,0.0003,2]
[312833608,1706321445962,-8104.38151041,0.0003,2]
[312833609,1706321445972,-8104.38151041,0.0003,2]
[312833610,1706321445981,-8104.38151041,0.0003,2]
[312833611,1706321445990,-153044.88236708,0.000301,2]
[312833612,1706321445999,-162.05,0.00030137,2]
[312833613,1706321446008,-153.84,0.00030137,2]
[312833614,1706321446017,-7027.18095311,0.000302,3]
[312833615,1706321446027,-1973.38140147,0.000302,2]
[312833616,1706321446036,-3425.51805328,0.000302,5]
[312833617,1706321446045,-500.0,0.000302,2]
[312833618,1706321446054,-1163.17517222,0.0003025,2]
[312833619,1706321446063,-1902.17554255,0.0003025,2]
[312833620,1706321446072,-14400.17062602,0.0003025,2]
[312833621,1706321446081,-183.15847185,0.0003025,2]
[312833622,1706321446091,-213.71,0.00030281,2]
[312833623,1706321446100,-16643.5498846,0.00030341,2]
[312833624,1706321446109,-377.4329224,0.00030343,2]
[312833625,1706321446118,-796.9581281,0.00030343,2]
[312833626,1706321446127,-3084.22737246,0.00030356,5]
[312833627,1706321446136,-151.97280474,0.00030501,2]
[312833628,1706321446145,-1138.0,0.00030535,2]
[312833629,1706321446155,-161.25,0.00030635,2]
[312833630,1706321446164,-1138.0,0.000307,2]
[312833631,1706321446173,-2399.0,0.000307,2]
[312833632,1706321446182,-213.71,0.00030714,2]
[312833633,1706321446191,-5498.31,0.00030743,2]
[312833634,1706321446200,-200.92,0.00030976,2]
[312833635,1706321446210,-700.0,0.00031,3]
[312833636,1706321446219,-213.71,0.00031146,2]
[312833637,1706321446228,-150.0,0.00031369,2]
[312833638,1706321446237,-150.0,0.00031369,2]
[312833639,1706321446246,-150.0,0.00031369,2]
[312833640,1706321446255,-150.0,0.00031369,2]
[312833641,1706321446263,-150.0,0.00031369,2]
[312833642,1706321446271,-221.121,0.00031369,2]
[312833643,1706321446280,-1233.0,0.00031369,2]
[312833644,1706321446289,-319.0,0.00031369,2]
[312833645,1706321446297,-161.25,0.00031382,2]
[312833646,1706321446306,-162.05,0.00031507,2]
[312833647,1706321446314,-213.71,0.00031579,2]
[312833648,1706321446323,-180.0,0.00031644,2]
[312833649,1706321446332,-9164.10454866,0.00031697,2]
[312833650,1706321446341,-52007.67404043,0.000317,2]
[312833651,1706321446349,-5498.31,0.00031767,2]
[312833652,1706321446358,-28027.1833955,0.000318,3]
[312833653,1706321446367,-5000.0,0.0003189,2]
[312833654,1706321446376,-153.84,0.00031963,2]
[312833655,1706321446385,-213.71,0.00032011,2]
[312833656,1706321446394,-161.25,0.0003213,2]
[312833657,1706321446403,-2639.79429861,0.000324,2]
[312833658,1706321446412,-2639.79429842,0.000324,2]
[312833659,1706321446421,-2639.79429842,0.000324,2]
[312833660,1706321446430,-2639.79429842,0.000324,2]
[312833661,1706321446439,-210.0,0.00032426,2]
[312833662,1706321446448,-213.71,0.00032444,2]
[312833664,1706321446457,-565.56,0.00032498,2]
[312833666,1706321446467,-161.63385363,0.000325,2]
[312833667,1706321446586,-10401.53,0.000325,2]
[312833668,1706321446596,-434.44,0.00032505,2]
[312833669,1706321446606,-10949.87467116,0.00032598,4]
[312833670,1706321446615,-1000.0,0.000327,2]
[312833671,1706321446624,-159.9959856,0.00032778,2]
[312833672,1706321446632,-337.8351322,0.00032778,2]
[312833673,1706321446641,-7055.29648,0.00032778,2]
[312833674,1706321446650,-567964.42159344,0.000328,2]
[312833675,1706321446659,-36605.08556566,0.000328,2]
[312833676,1706321446668,-213.71,0.00032876,2]
[312833677,1706321446677,-162.05,0.00032877,2]
[312833678,1706321446687,-151.0,0.00032877,7]
[312833679,1706321446696,-151.199934,0.00032877,7]
[312833680,1706321446706,-152.879038,0.00032877,7]
[312833681,1706321446715,-151.0,0.00032877,7]
[312833682,1706321446724,-153.592882,0.00032877,7]
[312833683,1706321446735,-151.0,0.00032877,7]
[312833684,1706321446745,-152.728713,0.00032877,7]
[312833685,1706321446754,-151.0,0.00032877,7]
[312833686,1706321446763,-151.0,0.00032877,7]
[312833687,1706321446772,-153.633069,0.00032877,7]
[312833688,1706321446783,-151.0,0.00032877,7]
[312833689,1706321446792,-209.797228,0.00032877,7]
[312833690,1706321446801,-155.793179,0.00032877,7]
[312833691,1706321446812,-151.0,0.00032877,7]
[312833692,1706321446821,-151.0,0.00032877,7]
[312833693,1706321446830,-151.0,0.00032877,7]
[312833694,1706321446838,-229.22371,0.00032877,7]
[312833695,1706321446847,-152.593497,0.00032877,7]
[312833696,1706321446857,-500.0,0.00032877,2]
[312833697,1706321446866,-151.0,0.00032877,7]
[312833698,1706321446875,-152.411646,0.00032877,7]
[312833699,1706321446884,-156.583293,0.00032877,7]
[312833700,1706321446893,-151.0,0.00032877,7]
[312833701,1706321446903,-151.0,0.00032877,7]
[312833702,1706321446912,-151.0,0.00032877,7]
[312833703,1706321446921,-151.0,0.00032877,7]
[312833704,1706321446930,-158.017678,0.00032877,7]
[312833705,1706321446939,-151.0,0.00032877,7]
[312833706,1706321446948,-154.275468,0.00032877,7]
[312833707,1706321446957,-316.09,0.00032877,15]
[312833708,1706321446966,-443.673776,0.00032877,7]
[312833709,1706321446975,-443.673776,0.00032877,7]
[312833710,1706321446985,-443.673776,0.00032877,7]
[312833711,1706321446994,-443.673776,0.00032877,7]
[312833712,1706321447004,-443.673776,0.00032877,7]
[312833713,1706321447013,-443.673776,0.00032877,7]
[312833714,1706321447022,-443.673776,0.00032877,7]
[312833715,1706321447031,-443.673776,0.00032877,7]
[312833716,1706321447040,-443.673776,0.00032877,7]
[312833717,1706321447049,-443.673776,0.00032877,7]
[312833718,1706321447057,-443.673776,0.00032877,7]
[312833719,1706321447066,-443.673776,0.00032877,7]
[312833720,1706321447076,-443.673776,0.00032877,7]
[312833721,1706321447085,-443.673776,0.00032877,7]
[312833722,1706321447094,-443.673776,0.00032877,7]
[312833723,1706321447104,-443.673776,0.00032877,7]
[312833724,1706321447113,-500.0,0.00032877,2]
[312833725,1706321447123,-151.0,0.00032877,7]
[312833726,1706321447133,-151.0,0.00032877,7]
[312833727,1706321447142,-151.0,0.00032877,7]
[312833728,1706321447151,-151.0,0.00032877,7]
[312833729,1706321447160,-151.0,0.00032877,7]
[312833730,1706321447170,-253.294113,0.00032877,7]
[312833731,1706321447179,-162.681443,0.00032877,7]
[312833732,1706321447188,-151.0,0.00032877,7]
[312833733,1706321447197,-151.0,0.00032877,7]
[312833734,1706321447207,-154.560496,0.00032877,7]
[312833735,1706321447216,-151.0,0.00032877,2]
[312833736,1706321447225,-151.0,0.00032877,2]
[312833737,1706321447233,-151.0,0.00032877,2]
[312833738,1706321447242,-151.0,0.00032877,2]
[312833739,1706321447251,-151.0,0.00032877,2]
[312833740,1706321447260,-151.0,0.00032877,2]
[312833741,1706321447270,-151.0,0.00032877,2]
[312833742,1706321447279,-151.0,0.00032877,2]
[312833743,1706321447288,-151.0,0.00032877,2]
[312833744,1706321447297,-151.0,0.00032877,2]
[312833745,1706321447306,-278.2552,0.00032877,2]
[312833746,1706321447315,-151.0,0.00032877,7]
[312833747,1706321447324,-156.514596,0.00032877,7]
[312833748,1706321447333,-151.0,0.00032877,7]
[312833749,1706321447342,-151.0,0.00032877,7]
[312833750,1706321447350,-151.0,0.00032877,7]
[312833751,1706321447359,-151.0,0.00032877,7]
[312833752,1706321447368,-151.0,0.00032877,7]
[312833753,1706321447377,-151.0,0.00032877,7]
[312833754,1706321447386,-151.0,0.00032877,7]
[312833755,1706321447395,-151.0,0.00032877,7]
[312833756,1706321447404,-151.0,0.00032877,7]
[312833757,1706321447413,-220.897599,0.00032877,7]
[312833758,1706321447422,-151.0,0.00032877,7]
[312833759,1706321447432,-214.711935,0.00032877,7]
[312833760,1706321447441,-220.897599,0.00032877,7]
[312833761,1706321447450,-220.897599,0.00032877,7]
[312833762,1706321447459,-220.897599,0.00032877,7]
[312833763,1706321447468,-220.897599,0.00032877,7]
[312833764,1706321447477,-220.897599,0.00032877,7]
[312833765,1706321447486,-220.897599,0.00032877,7]
[312833766,1706321447495,-220.897599,0.00032877,7]
[312833767,1706321447505,-220.897599,0.00032877,7]
[312833768,1706321447514,-220.897599,0.00032877,7]
[312833769,1706321447524,-220.897599,0.00032877,7]
[312833770,1706321447533,-220.897599,0.00032877,7]
[312833771,1706321447543,-220.897599,0.00032877,7]
[312833772,1706321447552,-220.897599,0.00032877,7]
[312833773,1706321447562,-220.897599,0.00032877,7]
[312833774,1706321447571,-220.897599,0.00032877,7]
[312833775,1706321447580,-151.0,0.00032877,7]
[312833776,1706321447589,-151.0,0.00032877,7]
[312833777,1706321447598,-156.487127,0.00032877,7]
[312833778,1706321447607,-151.562343,0.00032877,7]
[312833779,1706321447616,-151.965117,0.00032877,7]
[312833780,1706321447625,-151.0,0.00032877,7]
[312833781,1706321447634,-151.0,0.00032877,7]
[312833782,1706321447643,-151.0,0.00032877,7]
[312833783,1706321447652,-151.0,0.00032877,7]
[312833784,1706321447661,-291.458799,0.00032877,7]
[312833785,1706321447670,-158.860333,0.00032877,7]
[312833786,1706321447678,-151.0,0.00032877,7]
[312833787,1706321447688,-153.197477,0.00032877,7]
[312833788,1706321447697,-151.0,0.00032877,7]
[312833789,1706321447707,-151.0,0.00032877,7]
[312833790,1706321447716,-151.0,0.00032877,7]
[312833791,1706321447726,-157.69294,0.00032877,7]
[312833792,1706321447739,-153.765389,0.00032877,7]
[312833793,1706321447749,-151.0,0.00032877,7]
[312833794,1706321447758,-154.501455,0.00032877,7]
[312833795,1706321447767,-151.0,0.00032877,7]
[312833796,1706321447776,-151.0,0.00032877,7]
[312833797,1706321447785,-187.384215,0.00032877,7]
[312833798,1706321447794,-161.25,0.00032877,2]
[312833799,1706321447803,-8685.0,0.0003288,2]
[312833800,1706321447813,-8685.0,0.0003288,2]
[312833801,1706321447823,-8685.0,0.0003288,2]
[312833802,1706321447831,-8685.0,0.0003288,2]
[312833803,1706321447840,-8685.0,0.0003288,2]
[312833804,1706321447849,-2000.0,0.00033,5]
[312833805,1706321447858,-905.45468879,0.00033,4]
[312833806,1706321447868,-750.0,0.00033,3]
[312833807,1706321447877,-200.92,0.0003324,2]
[312833808,1706321447886,-243.56,0.000335,2]
[312833809,1706321447895,-243.56,0.000335,2]
[312833810,1706321447905,-243.56,0.000335,2]
[312833811,1706321447915,-243.56,0.000335,2]
[312833812,1706321447925,-243.56,0.000335,2]
[312833813,1706321447934,-243.56,0.000335,2]
[312833814,1706321447943,-243.56,0.000335,2]
[312833815,1706321447953,-243.56,0.000335,2]
[312833816,1706321447963,-243.56,0.000335,2]
[312833817,1706321447972,-243.56,0.000335,2]
[312833818,1706321447981,-243.56,0.000335,2]
[312833819,1706321447991,-243.56,0.000335,2]
[312833820,1706321448001,-243.56,0.000335,2]
[312833821,1706321448010,-243.56,0.000335,2]
[312833822,1706321448020,-243.56,0.000335,2]
[312833823,1706321448029,-243.56,0.000335,2]
[312833824,1706321448039,-243.56,0.000335,2]
[312833825,1706321448048,-243.56,0.000335,2]
[312833826,1706321448057,-243.56,0.000335,2]
[312833827,1706321448066,-243.56,0.000335,2]
[312833828,1706321448075,-1125.769,0.00033535,2]
[312833829,1706321448084,-153.84,0.0003379,2]